lending/lending_fUSD_20250508
["ID","MTS","AMOUNT","RATE_DAILY","PERIOD"]
[360319311,1746740984421,-1549.65235194,0.000437,33]
[360319312,1746740984453,-397.80101665,0.000437,30]
[360319313,1746740984482,-514.360814,0.000437,42]
[360319314,1746740984514,-2052.69351717,0.000437,30]
[360319315,1746740984544,-260.49196771,0.000437,120]
[360319316,1746740984573,-595.65973108,0.00043715,30]
[360319317,1746740984603,-8225.60501408,0.0004375,120]
[360319318,1746740984633,-810.0,0.00043755,30]
[360319319,1746740984663,-150.0,0.00043756,120]
[360319320,1746740984692,-3815.4276427,0.0004379,120]
[360319321,1746740984721,-212.0,0.0004379,30]
[360319322,1746740984751,-212.0,0.0004379,30]
[360319323,1746740984786,-1589.42207291,0.00043792,30]
[360319324,1746740984815,-50192.01846638,0.000438,30]
[360319325,1746740984846,-5022.95187423,0.000438,120]
[360319326,1746740984876,-483.63898146,0.000438,30]
[360319327,1746740984909,-1382.8559059,0.000438,90]
[360319328,1746740984941,-1000.0,0.000438,120]
[360319329,1746740984975,-232.71,0.000438,120]
[360319330,1746740985008,-160.0,0.000438,49]
[360319331,1746740985041,-1250.51867871,0.000438,90]
[360319332,1746740985071,-2515.87616521,0.000438,120]
[360319333,1746740985101,-20000.0,0.000438,30]
[360319334,1746740985132,-160.0,0.000438,49]
[360319335,1746740985163,-85793.34969481,0.000438,30]
[360319336,1746740985193,-665.41720137,0.000438,120]
[360319337,1746740985224,-314.0,0.0004381,120]
[360319338,1746740985256,-1255.0,0.0004381,120]
[360319339,1746740985286,-200000.0,0.0004382,30]
[360319340,1746740985317,-500.0,0.00043821,120]
[360319341,1746740985351,-518.5,0.00043829,30]
[360319342,1746740985379,-500.0,0.00043829,30]
[360319343,1746740985411,-155.0,0.00043829,30]
[360319344,1746740985439,-537.6845,0.00043829,31]
[360319345,1746740985468,-557.5788265,0.00043829,50]
[360319346,1746740985497,-578.20924308,0.00043829,60]
[360319347,1746740985529,-599.60298507,0.00043829,80]
[360319348,1746740985558,-621.78829552,0.00043829,90]
[360319349,1746740985589,-644.79446246,0.00043829,91]
[360319350,1746740985620,-534.12560148,0.0004383,30]
[360319351,1746740985651,-2741.46092759,0.00043836,120]
[360319352,1746740985680,-2000.0,0.00043836,120]
[360319353,1746740985709,-840.0,0.00043836,120]
[360319354,1746740985742,-150.0,0.00043847,120]
[360319355,1746740986209,-23336.15581715,0.0004388,120]
[360319356,1746740986240,-1000.0,0.000439,120]
[360319357,1746740986273,-26614.20157861,0.000439,30]
[360319358,1746740986303,-100140.30323417,0.000439,30]
[360319359,1746740986332,-26500.0,0.000439,30]
[360319360,1746740986360,-108385.87022274,0.00043903,120]
[360319361,1746740986390,-150.0,0.0004391,120]
[360319362,1746740986421,-456.82,0.00043911,30]
[360319363,1746740986451,-150.0,0.00043919,120]
[360319364,1746740986481,-150.0,0.00043967,120]
[360319365,1746740986509,-150.05375079,0.00043972,40]
[360319366,1746740986539,-4117.04430818,0.00043987,120]
[360319367,1746740986567,-150.7932188,0.00043997,30]
[360319368,1746740986597,-50000.0,0.00044,44]
[360319369,1746740986625,-10000.0,0.00044,120]
[360319370,1746740986653,-311.0,0.00044,120]
[360319371,1746740986681,-325.0,0.00044,120]
[360319372,1746740986710,-342.0,0.00044,120]
[360319373,1746740986739,-3951.12933317,0.00044,30]
[360319374,1746740986767,-618.89670043,0.00044,120]
[360319375,1746740986796,-11765.01716315,0.00044,120]
[360319376,1746740986824,-33991.9,0.00044,120]
[360319377,1746740986858,-62000.0,0.00044,120]
[360319378,1746740986889,-2000.0,0.00044,120]
[360319379,1746740986921,-189.62863631,0.00044,60]
[360319380,1746740986951,-1800.0,0.00044,45]
[360319381,1746740986980,-1300.0,0.00044,120]
[360319382,1746740987010,-1000.0,0.00044,120]
[360319383,1746740987039,-1190.63760786,0.00044,30]
[360319384,1746740987066,-274.0,0.00044,120]
[360319385,1746740987094,-20000.0,0.00044,120]
[360319386,1746740987125,-1661.0,0.00044,120]
[360319387,1746740987154,-10144.22428405,0.00044,120]
[360319388,1746740987185,-1199.11699515,0.00044,30]
[360319389,1746740987213,-4123.04734192,0.00044,30]
[360319390,1746740987240,-2502.49720494,0.00044,120]
[360319391,1746740987268,-889.0,0.00044,90]
[360319392,1746740987294,-939.0,0.00044,90]
[360319393,1746740987323,-939.0,0.00044,90]
[360319394,1746740987351,-154.0,0.00044,90]
[360319395,1746740989981,-300.0,0.0004401,30]
[360319396,1746740990012,-151.0,0.00044015,120]
[360319397,1746740990042,-500.0,0.00044015,120]
[360319398,1746740990070,-200.0738467,0.00044015,120]
[360319399,1746740990098,-500.0,0.00044015,120]
[360319400,1746740990127,-155.0,0.00044015,120]
[360319401,1746740990157,-200.0,0.00044015,120]
[360319402,1746740990185,-16910.47033175,0.00044016,120]
[360319403,1746740990213,-2110.0,0.00044016,30]
[360319404,1746740990241,-113010.75182751,0.00044026,30]
[360319405,1746740990268,-113010.75182751,0.00044026,30]
[360319406,1746740990296,-113010.75182751,0.00044026,30]
[360319407,1746740990323,-113010.75182751,0.00044026,30]
[360319408,1746740990351,-1160.19979,0.00044088,30]
[360319409,1746740990378,-500.0,0.00044095,120]
[360319410,1746740990408,-1000.0,0.000441,120]
[360319411,1746740990436,-222.22222,0.000441,120]
[360319412,1746740990463,-150.0,0.00044169,120]
[360319413,1746740990492,-150.0,0.00044174,120]
[360319414,1746740990518,-150.0,0.00044188,120]
[360319415,1746740990545,-1000.0,0.000442,120]
[360319416,1746740990571,-150.0,0.0004427,120]
[360319417,1746740990598,-1160.19979,0.00044288,30]
[360319418,1746740990626,-1000.0,0.000443,120]
[360319419,1746740990656,-800.0,0.0004434,120]
[360319420,1746740990683,-500.0,0.0004434,120]
[360319421,1746740990713,-150.0,0.00044344,120]
[360319422,1746740990740,-11102.25527703,0.00044344,31]
[360319423,1746740990770,-1000.0,0.00044344,31]
[360319424,1746740990802,-500.0,0.00044369,120]
[360319425,1746740990830,-5410.92486269,0.0004439,120]
[360319426,1746740990859,-94880.59987975,0.00044399,30]
[360319427,1746740990888,-1000.0,0.000444,120]
[360319428,1746740990921,-93505.91947907,0.0004444,30]
[360319429,1746740990952,-1337707.74737684,0.0004444,30]
[360319434,1746740999737,-266079.25262316,0.0004444,30]
[360319435,1746740999766,-2000.0,0.0004447,35]
[360319436,1746740999796,-1160.19979,0.00044488,30]
[360319437,1746740999828,-1000.0,0.000445,120]
[360319438,1746740999857,-1000.0,0.000445,120]
[360319439,1746740999886,-1000.0,0.000445,120]
[360319440,1746740999915,-11225.06463087,0.000445,120]
[360319441,1746740999948,-21994.99276921,0.000445,120]
[360319442,1746740999979,-150.0,0.00044507,120]
[360319443,1746741000010,-2110.0,0.00044516,30]
[360319444,1746741000041,-150.0,0.00044517,120]
[360319445,1746741000074,-150.0,0.00044525,120]
[360319446,1746741000103,-150.0,0.00044567,120]
[360319447,1746741000134,-1000.0,0.000446,120]
[360319448,1746741000164,-304.93797,0.000446,120]
[360319449,1746741000193,-1333.0,0.00044603,120]
[360319450,1746741000224,-500.0,0.00044643,120]
[360319451,1746741000256,-270.26,0.00044656,120]
[360319452,1746741000287,-150.0,0.00044684,120]
[360319453,1746741000317,-1160.19979,0.00044688,30]
[360319454,1746741000349,-150.0,0.00044692,120]
[360319455,1746741000379,-150.0,0.00044692,120]
[360319456,1746741000409,-1000.0,0.000447,120]
[360319457,1746741000436,-5629.18801446,0.000447,120]
[360319458,1746741000465,-150.0,0.00044755,120]
[360319459,1746741000493,-1000.0,0.000448,120]
[360319460,1746741000520,-200866.26520883,0.000448,30]
[360319461,1746741000550,-69443.87278895,0.000448,120]
[360319462,1746741000943,-1160.19979,0.00044888,30]
[360319463,1746741000995,-500.0,0.00044888,120]
[360319464,1746741001028,-2330.08,0.00044899,45]
[360319465,1746741001057,-469.49795291,0.000449,120]
[360319466,1746741001085,-1000.0,0.000449,120]
[360319467,1746741001112,-17683.46876213,0.000449,120]
[360319468,1746741001138,-3699.78785703,0.000449,30]
[360319469,1746741001164,-1361.36154752,0.000449,120]
[360319470,1746741001192,-509.82848868,0.000449,120]
[360319471,1746741001222,-543.97885219,0.00044917,120]
[360319472,1746741001250,-3000.0,0.0004496,45]
[360319473,1746741001279,-436.0,0.00044986,120]
[360319474,1746741001309,-10500.0,0.0004499,60]
[360319475,1746741001339,-500.0,0.00044992,60]
[360319476,1746741001370,-150.0,0.00044993,120]
[360319477,1746741001398,-4364878.56316406,0.00044996,120]
[360319478,1746741002098,2345.46920432,0.0001,2]
[360319479,1746741002122,1712.04794406,0.0001,2]
[360319480,1746741010250,-156054.88683594,0.00044996,120]
[360319481,1746741010279,-1000.0,0.00044998,120]
[360319482,1746741010307,-1000.0,0.00044999,120]
[360319483,1746741010339,-50000.0,0.00045,45]
[360319484,1746741010367,-5976.2635415,0.00045,35]
[360319485,1746741010395,-3072.91752181,0.00045,60]
[360319486,1746741010422,-294.02646984,0.00045,120]
[360319487,1746741010454,-1670.0,0.00045,120]
[360319488,1746741010484,-208.48254784,0.00045,30]
[360319489,1746741010513,-1000.0,0.00045,120]
[360319490,1746741010541,-721.0,0.00045,120]
[360319491,1746741010567,-69599.68525055,0.00045,30]
[360319492,1746741010595,-3013.08,0.00045,90]
[360319493,1746741010623,-597.30044169,0.00045,30]
[360319494,1746741010649,-1000.0,0.00045,120]
[360319495,1746741010679,-500.81,0.00045,30]
[360319496,1746741010706,-502.81,0.00045,30]
[360319497,1746741010734,-31265.4272615,0.00045,120]
[360319498,1746741010762,-453.94185797,0.00045,60]
[360319499,1746741010790,-276.36761321,0.00045,60]
[360319500,1746741010818,-913.27,0.00045,120]
[360319501,1746741010846,-1000.0,0.00045,120]
[360319502,1746741010878,-3067.81759826,0.00045,120]
[360319503,1746741010908,-552.94552348,0.00045,60]
[360319504,1746741010942,-3000.0,0.00045,40]
[360319505,1746741010973,-4561.66958974,0.00045,120]
[360319506,1746741011002,-1800.0,0.00045,46]
[360319507,1746741011038,-150000.0,0.00045,60]
[360319508,1746741011068,-25000.0,0.00045,120]
[360319509,1746741011095,-161.1,0.00045,85]
[360319510,1746741011129,-3000.0,0.00045,60]
[360319511,1746741011157,-4000.0,0.00045,60]
[360319512,1746741011187,-283.68098962,0.00045,30]
[360319513,1746741011214,-1779.39775055,0.00045,120]
[360319514,1746741011242,-2718.55645754,0.00045,120]
[360319515,1746741011270,-252.0,0.00045,120]
[360319516,1746741011297,-25000.0,0.00045,120]
[360319517,1746741011326,-1715.37428654,0.00045,120]
[360319518,1746741011354,-465.58458413,0.00045,90]
[360319519,1746741011381,-1176.04701011,0.00045,120]
[360319520,1746741011409,-160.29,0.00045,30]
[360319521,1746741011438,-434.71349667,0.00045,120]
[360319522,1746741011466,-151.0,0.00045,120]
[360319523,1746741011494,-451847.63889993,0.00045,60]
[360319524,1746741011522,-1118.97785099,0.00045,120]
[360319525,1746741011550,-983.30572223,0.00045,120]
[360319526,1746741011923,-2982.20578746,0.00045,120]
[360319527,1746741011967,-957.0836808,0.00045,120]
[360319528,1746741011997,-629.0,0.00045,120]
[360319529,1746741012026,-215.68282428,0.00045,30]
[360319530,1746741012055,-225.18777743,0.00045,120]
[360319531,1746741012083,-1311.34948781,0.00045,120]
[360319532,1746741012111,-10412.65144304,0.00045,90]
[360319533,1746741012139,-3793.64147915,0.00045,120]
[360319534,1746741012168,-4880.79,0.00045,120]
[360319535,1746741012195,-4880.79,0.00045,120]
[360319536,1746741012223,-40142.0,0.00045,120]
[360319537,1746741012250,-2928.47,0.00045,120]
[360319538,1746741012277,-3887.55299342,0.00045,120]
[360319539,1746741012304,-19169.61430232,0.00045,30]
[360319540,1746741012331,-4505.57828694,0.00045,120]
[360319541,1746741012361,-2775.89,0.00045,120]
[360319542,1746741012389,-5571.05,0.00045,120]
[360319543,1746741012418,-5571.05,0.00045,120]
[360319544,1746741012446,-5571.05,0.00045,120]
[360319545,1746741012478,-8366.86516227,0.00045,120]
[360319546,1746741012505,-282.57329594,0.00045,60]
[360319547,1746741012534,-2324.19275256,0.00045,120]
[360319548,1746741012561,-20000.55003363,0.00045,120]
[360319549,1746741012590,-2352.59,0.00045,120]
[360319550,1746741012618,-2352.59,0.00045,120]
[360319551,1746741012646,-2352.59,0.00045,120]
[360319552,1746741012676,-2352.59,0.00045,120]
[360319553,1746741012704,-2352.59,0.00045,120]
[360319554,1746741012731,-460.14718076,0.00045,120]
[360319555,1746741012763,-6543.87,0.00045,120]
[360319556,1746741012792,-6543.87,0.00045,120]
[360319557,1746741012821,-6543.87,0.00045,120]
[360319558,1746741012849,-6543.87,0.00045,120]
[360319559,1746741012879,-6543.87,0.00045,120]
[360319560,1746741012910,-23124.0,0.00045,120]
[360319561,1746741012942,-4906.99,0.00045,120]
[360319562,1746741012973,-4906.99,0.00045,120]
[360319563,1746741013004,-4906.99,0.00045,120]
[360319564,1746741013036,-4906.99,0.00045,120]
[360319565,1746741013069,-4906.99,0.00045,120]
[360319566,1746741013098,-271590.89098625,0.00045,120]
[360319567,1746741013129,-1272.39,0.00045,120]
[360319568,1746741013159,-1272.39,0.00045,120]
[360319569,1746741013190,-1272.39,0.00045,120]
[360319570,1746741013220,-1272.39,0.00045,120]
[360319571,1746741013251,-254.48,0.00045,120]
[360319572,1746741013283,-254.48,0.00045,120]
[360319573,1746741013314,-254.48,0.00045,120]
[360319574,1746741013344,-766165.69573618,0.00045,120]
[360319575,1746741013376,-661672.61612507,0.00045,60]
[360319576,1746741013406,-1525.73190156,0.00045,60]
[360319577,1746741013438,-500.0,0.00045,120]
[360319578,1746741013468,-350.0,0.00045,120]
[360319579,1746741013497,-500.0,0.00045,120]
[360319580,1746741013527,-4560.36007057,0.00045003,120]
[360319581,1746741013556,-2066.04,0.00045016,30]
[360319582,1746741013584,-1160.19979,0.00045088,30]
[360319583,1746741013613,-2626522.13,0.0004512,120]
[360319584,1746741013645,-150.0,0.00045124,120]
[360319585,1746741013675,-2000.0,0.00045136,120]
[360319586,1746741013706,-222.22222,0.000452,120]
[360319587,1746741013736,-150.0,0.00045224,120]
[360319588,1746741013765,-1160.19979,0.00045288,30]
[360319589,1746741013796,-150.0,0.00045321,120]
[360319590,1746741013826,-150.0,0.00045341,120]
[360319591,1746741013855,-50000.0,0.00045352,30]
[360319592,1746741013886,-150.0,0.00045362,120]
[360319593,1746741013918,-500.0,0.00045436,120]
[360319594,1746741013949,-159.97664236,0.0004544,120]
[360319595,1746741013981,-1160.19979,0.00045488,30]
[360319596,1746741014014,-150.0,0.00045495,120]
[360319597,1746741014046,-150.0,0.00045543,120]
[360319598,1746741014078,-304.93803,0.000456,120]
[360319599,1746741014107,-1160.19979,0.00045688,30]
[360319600,1746741014143,-295.79158798,0.000457,120]
[360319601,1746741014182,-150.0,0.00045754,120]
[360319602,1746741014215,-150.0,0.00045784,120]
[360319603,1746741014247,-1000.0,0.000458,30]
[360319604,1746741014275,-1000.0,0.000458,30]
[360319605,1746741014304,-1500.0,0.000458,30]
[360319606,1746741014334,-150.0,0.00045823,120]
[360319607,1746741014365,-150.0,0.00045829,120]
[360319608,1746741014394,-2000.0,0.0004586,35]
[360319609,1746741014424,-150.0,0.00045882,120]
[360319610,1746741014454,-1160.19979,0.00045888,30]
[360319611,1746741014483,-3296.10254738,0.000459,119]
[360319612,1746741014514,-150.0,0.00045924,120]
[360319613,1746741014542,-500.0,0.00045984,120]
[360319614,1746741014570,-250.77096568,0.00045988,120]
[360319615,1746741014600,-50000.0,0.00046,46]
[360319616,1746741014629,-800.0,0.00046,120]
[360319617,1746741014657,-1200.0,0.00046,120]
[360319618,1746741014688,-1000.0,0.00046,120]
[360319619,1746741014717,-275.02812152,0.00046,120]
[360319620,1746741014998,-699.39787666,0.00046,60]
[360319621,1746741015030,-2049.50958168,0.00046,30]
[360319622,1746741015062,-1000.0,0.00046,120]
[360319623,1746741015092,-1800.0,0.00046,47]
[360319624,1746741015122,-1000.0,0.00046,120]
[360319625,1746741015152,-3000.0,0.00046,120]
[360319626,1746741015184,-6347.77461836,0.00046,120]
[360319627,1746741015213,-3206.56047985,0.00046,120]
[360319628,1746741015242,-150.3268075,0.00046,30]
[360319629,1746741015272,-270.26,0.00046026,120]
[360319630,1746741015302,-1160.19979,0.00046088,30]
[360319631,1746741015332,-150000.0,0.00046139,30]
[360319632,1746741015362,-888.0,0.00046242,30]
[360319633,1746741015390,-8104.9445593,0.0004628,30]
[360319634,1746741015421,-1160.19979,0.00046288,30]
[360319635,1746741015453,-1160.19979,0.00046488,30]
[360319636,1746741015483,-500.0,0.00046532,120]
[360319637,1746741015514,-1000.0,0.00046575,120]
[360319638,1746741015544,-534.32351288,0.00046575,60]
[360319639,1746741015577,-1185.6,0.00046599,120]
[360319640,1746741015609,-25549.0,0.000466,120]
[360319641,1746741015641,-1000.0,0.00046602,120]
[360319642,1746741015672,-1000.0,0.0004663,120]
[360319643,1746741015703,-1000.0,0.00046657,120]
[360319644,1746741015734,-1000.0,0.00046684,120]
[360319645,1746741015765,-1160.19979,0.00046688,30]
[360319646,1746741015796,-1000.0,0.00046712,120]
[360319647,1746741015826,-1000.0,0.00046739,120]
[360319648,1746741015856,-1000.0,0.00046767,120]
[360319649,1746741015887,-1000.0,0.00046794,120]
[360319650,1746741015919,-802.85,0.00046797,30]
[360319651,1746741015953,-802.85,0.00046797,30]
[360319652,1746741015987,-802.85,0.00046797,30]
[360319653,1746741016019,-456.82,0.00046797,30]
[360319654,1746741016051,-456.82,0.00046797,30]
[360319655,1746741016081,-456.82,0.00046797,30]
[360319656,1746741016111,-1610.7919336,0.000468,120]
[360319657,1746741016139,-257.56485401,0.000468,120]
[360319658,1746741016167,-2368.99,0.000468,110]
[360319659,1746741016196,-169.00578346,0.00046821,30]
[360319660,1746741016226,-1000.0,0.00046821,120]
[360319661,1746741016256,-1000.0,0.00046849,120]
[360319662,1746741016284,-5000.0,0.0004686,45]
[360319663,1746741016313,-1000.0,0.00046876,120]
[360319664,1746741016342,-1160.19979,0.00046888,30]
[360319665,1746741016371,-3000.0,0.0004689,45]
[360319666,1746741016400,-1000.0,0.00046904,120]
[360319667,1746741016431,-1000.0,0.00046931,120]
[360319668,1746741016459,-1000.0,0.00046958,120]
[360319669,1746741016490,-1000.0,0.00046986,120]
[360319670,1746741016522,-33029.0615687,0.00047,47]
[360319672,1746741021228,-362.32093881,0.00044,120]
[360319673,1746741023987,-159.0,0.0004444,30]
[360319674,1746741024019,-272.07879045,0.0004444,30]
[360319675,1746741024054,-210.54720764,0.00044932,120]
[360319676,1746741024085,-432.20742833,0.00044932,120]
[360319677,1746741024116,-1093.48400321,0.00044932,120]
[360319678,1746741024153,-16970.9384313,0.00047,47]
[360319679,1746741024184,-1800.0,0.00047,48]
[360319680,1746741024216,-1000.0,0.00047,120]
[360319681,1746741024247,-3000.0,0.00047,40]
[360319682,1746741024277,-1000.0,0.00047,120]
[360319683,1746741024307,-1000.0,0.00047,120]
[360319684,1746741024336,-10000.0,0.00047,120]
[360319685,1746741024365,-156.18689027,0.00047,120]
[360319686,1746741024395,-40142.0,0.00047,120]
[360319687,1746741024424,-24942.60155237,0.00047,30]
[360319688,1746741024454,-23124.0,0.00047,120]
[360319689,1746741024483,-135410.59554731,0.00047,120]
[360319690,1746741024513,-729.31510871,0.00047013,120]
[360319691,1746741024542,-270.26,0.00047396,120]
[360319692,1746741024571,-10500.0,0.0004749,90]
[360319693,1746741024601,-583.5523246,0.00047501,120]
[360319694,1746741024630,-4591.4,0.00047556,117]
[360319695,1746741024659,-162.34,0.00047619,30]
[360319696,1746741024689,-452.17,0.0004762,30]
[360319697,1746741024718,-162.43,0.0004762,30]
[360319698,1746741024748,-1155.58,0.0004762,30]
[360319699,1746741024778,-352.5,0.0004762,30]
[360319700,1746741024808,-150.0,0.0004762,30]
[360319701,1746741024838,-150.0,0.0004762,30]
[360319702,1746741024867,-452.17,0.0004762,30]
[360319703,1746741024904,-1155.58,0.0004762,30]
[360319704,1746741024936,-162.43,0.0004762,30]
[360319705,1746741024971,-352.5,0.0004762,30]
[360319706,1746741025001,-150.0,0.0004762,30]
[360319707,1746741025032,-5000.0,0.0004788,40]
[360319708,1746741025064,-517.96153959,0.0004788,100]
[360319709,1746741025094,-5000.0,0.0004789,40]
[360319710,1746741025125,-15061.48281733,0.000479,30]
[360319711,1746741025154,-292.06905456,0.00047943,60]
[360319712,1746741025184,-100000.0,0.00047944,30]
[360319713,1746741025216,-50000.0,0.00048,48]
[360319714,1746741025246,-800.0,0.00048,120]
[360319715,1746741025276,-1100.0,0.00048,120]
[360319716,1746741025305,-1000.0,0.00048,120]
[360319717,1746741025334,-1800.0,0.00048,49]
[360319718,1746741025363,-1000.0,0.00048,120]
[360319719,1746741025391,-1000.0,0.00048,120]
[360319720,1746741025420,-10000.0,0.00048,90]
[360319721,1746741025450,-6347.77461836,0.00048,120]
[360319722,1746741025480,-3206.56047985,0.00048,120]
[360319723,1746741025508,-4457.52448354,0.00048,120]
[360319724,1746741025536,-2644.50443244,0.000481,120]
[360319725,1746741025565,-599.26749435,0.00048219,120]
[360319726,1746741025594,-313.65,0.00048415,30]
[360319727,1746741025623,-352.5,0.00048442,30]
[360319728,1746741025654,-162.43,0.00048442,30]
[360319729,1746741025684,-452.17,0.00048442,30]
[360319730,1746741025714,-150.0,0.00048442,30]
[360319731,1746741025744,-452.17,0.00048442,30]
[360319732,1746741025775,-162.43,0.00048442,30]
[360319733,1746741025806,-150.0,0.00048442,30]
[360319734,1746741025836,-352.5,0.00048442,30]
[360319735,1746741025866,-1155.58,0.00048442,30]
[360319736,1746741025896,-352.5,0.00048442,30]
[360319737,1746741025928,-150.0,0.00048442,30]
[360319738,1746741025961,-324.86,0.00048442,30]
[360319739,1746741025992,-452.17,0.00048442,30]
[360319740,1746741026022,-352.5,0.00048442,30]
[360319741,1746741026053,-452.17,0.00048442,30]
[360319742,1746741026082,-162.43,0.00048442,30]
[360319743,1746741026111,-150.0,0.00048442,30]
[360319744,1746741026142,-635.36,0.00048442,30]
[360319745,1746741026172,-452.17,0.00048442,30]
[360319746,1746741026203,-352.5,0.00048442,30]
[360319747,1746741026232,-150.0,0.00048442,30]
[360319748,1746741026264,-162.43,0.00048442,30]
[360319749,1746741026295,-150.0,0.00048442,30]
[360319750,1746741026325,-162.43,0.00048442,30]
[360319751,1746741026355,-150.0,0.00048442,30]
[360319752,1746741026386,-352.5,0.00048442,30]
[360319753,1746741026720,-452.17,0.00048442,30]
[360319754,1746741026755,-452.17,0.00048442,30]
[360319755,1746741026785,-162.43,0.00048442,30]
[360319756,1746741026816,-150.0,0.00048442,30]
[360319757,1746741026847,-352.5,0.00048442,30]
[360319758,1746741026877,-150.0,0.00048442,30]
[360319759,1746741026907,-492.11,0.00048442,30]
[360319760,1746741026939,-452.17,0.00048442,30]
[360319761,1746741026974,-150.0,0.00048442,30]
[360319762,1746741027007,-162.43,0.00048442,30]
[360319763,1746741027038,-150.0,0.00048442,30]
[360319764,1746741027068,-162.43,0.00048442,30]
[360319765,1746741027099,-452.17,0.00048442,30]
[360319766,1746741027130,-150.0,0.00048442,30]
[360319767,1746741027160,-162.43,0.00048442,30]
[360319768,1746741027191,-150.0,0.00048442,30]
[360319769,1746741027221,-452.17,0.00048442,30]
[360319770,1746741027251,-452.17,0.00048442,30]
[360319771,1746741027290,-162.43,0.00048442,30]
[360319772,1746741027328,-150.0,0.00048442,30]
[360319773,1746741027358,-452.17,0.00048442,30]
[360319774,1746741027389,-162.43,0.00048442,30]
[360319775,1746741027418,-452.17,0.00048442,30]
[360319776,1746741027450,-452.17,0.00048442,30]
[360319777,1746741027480,-302.96,0.00048442,30]
[360319778,1746741027508,-124829.95151402,0.000485,120]
[360319779,1746741027538,-369.45682766,0.000485,120]
[360319780,1746741027568,-954.73,0.00048715,30]
[360319781,1746741027597,-270.26,0.00048766,120]
[360319782,1746741027627,-3000.0,0.0004878,40]
[360319783,1746741027656,-1005391.19541562,0.000488,120]
[360319784,1746741027685,-65110.65916845,0.000488,120]
[360319785,1746741027715,-245.0,0.000488,120]
[360319786,1746741027746,-1979.08681569,0.000489,120]
[360319787,1746741027775,-3000.0,0.0004896,45]
[360319788,1746741027807,-5000.0,0.0004896,45]
[360319789,1746741027840,-50000.0,0.00049,49]
[360319790,1746741027872,-1000.0,0.00049,120]
[360319791,1746741027907,-1000.0,0.00049,120]
[360319792,1746741027938,-10000.0,0.00049,120]
[360319793,1746741027970,-5427.0,0.00049,30]
[360319794,1746741028004,-181.20173842,0.00049,120]
[360319795,1746741028035,-438.40647561,0.00049,120]
[360319796,1746741028068,-40142.0,0.00049,120]
[360319797,1746741028097,-10708.0,0.00049,90]
[360319798,1746741028127,-23124.0,0.00049,120]
[360319799,1746741028158,-63709.10877025,0.00049,30]
[360319800,1746741028189,-165.40276108,0.00049052,30]
[360319801,1746741028220,-350.0,0.00049315,30]
[360319802,1746741028250,-373.0,0.00049315,30]
[360319803,1746741028280,-350.0,0.00049315,30]
[360319804,1746741028311,-151.0,0.00049315,90]
[360319805,1746741028342,-151.0,0.00049315,90]
[360319806,1746741028373,-151.0,0.00049315,90]
[360319807,1746741028405,-151.0,0.00049315,90]
[360319808,1746741028442,-151.0,0.00049315,90]
[360319809,1746741028472,-151.0,0.00049315,90]
[360319810,1746741028501,-151.0,0.00049315,90]
[360319811,1746741028529,-151.0,0.00049315,90]
[360319812,1746741028556,-151.0,0.00049315,90]
[360319813,1746741028584,-151.0,0.00049315,90]
[360319814,1746741028613,-151.0,0.00049315,90]
[360319815,1746741028643,-151.0,0.00049315,90]